bitfinex/quotes_SOLUSD_20240530
["timestamp","ask_amount","ask_price","bid_price","bid_amount"]
[1717096731057,2.1722,170.33,170.27,62.1728]
[1717096731256,2.1723,170.32,170.27,68.771]
[1717096731758,2.172,170.35,170.27,66.5982]
[1717096732059,2.172,170.35,170.29,2.1727]
[1717096732758,2.1722,170.34,170.29,2.1727]
[1717096732932,6.07831071,170.38,170.3,60.0]
[1717096733134,6.5486,170.42,170.32,60.0]
[1717096733332,6.5486,170.42,170.3,62.1725]
[1717096733533,6.07716927,170.41,170.3,62.1725]
[1717096734058,6.07716927,170.41,170.31,2.1725]
[1717096734757,7.46,170.33,170.3,66.1848]
[1717096735069,7.46,170.33,170.3,60.0]
[1717096735254,7.46,170.33,170.3,62.1726]
[1717096736432,7.46,170.33,170.3,68.4229]
[1717096736932,7.46,170.33,170.31,2.1724]
[1717096739058,2.1719,170.36,170.32,60.0]
[1717096739434,2.1719,170.36,170.3,68.4228]
[1717096739653,2.1719,170.36,170.31,2.1724]
[1717096739952,2.172,170.35,170.3,68.4228]
[1717096740255,2.172,170.35,170.3,2.1725]
[1717096740436,7.46,170.31,170.27,2.1729]
[1717096740636,2.1722,170.34,170.28,60.0]
[1717096741045,2.1722,170.34,170.29,2.1727]
[1717096741456,2.1722,170.33,170.29,2.1727]
[1717096742157,2.1721,170.34,170.28,60.0]
[1717096742340,2.1721,170.34,170.29,2.1727]
[1717096742540,2.1721,170.34,170.3,60.0]
[1717096742958,2.1722,170.33,170.28,62.1728]
[1717096743159,2.1721,170.34,170.29,2.1727]
[1717096743350,2.172,170.35,170.31,60.0]
[1717096743543,11.8036,170.37,170.31,60.0]
[1717096743742,2.172,170.35,170.31,60.0]
[1717096744361,2.1719,170.36,170.31,62.1725]
[1717096745461,2.172,170.35,170.31,62.1725]
[1717096745664,2.172,170.35,170.31,60.0]
[1717096746151,2.172,170.35,170.31,62.1724]
[1717096748062,2.172,170.35,170.31,2.1724]
[1717096748363,2.172,170.35,170.3,2.1725]
[1717096748670,2.1719,170.36,170.31,62.1724]
[1717096749769,2.172,170.35,170.31,60.0]
[1717096750769,2.172,170.35,170.31,62.1724]
[1717096751273,2.1719,170.36,170.31,62.1724]
[1717096751473,2.172,170.35,170.31,62.1724]
[1717096751676,2.172,170.35,170.31,60.0]
[1717096752176,2.172,170.35,170.31,2.1725]
[1717096752361,2.172,170.35,170.3,62.1725]
[1717096752571,2.1725,170.31,170.28,60.0]
[1717096752750,2.1723,170.33,170.28,62.1728]
[1717096753157,2.1721,170.34,170.3,60.0]
[1717096753979,4.3438,170.36,170.28,62.1728]
[1717096754356,2.1724,170.32,170.28,60.0]
[1717096754771,2.1724,170.32,170.28,62.1728]
[1717096754971,2.1722,170.33,170.28,62.1728]
[1717096755780,2.1726,170.3,170.25,2.1732]
[1717096755956,6.0021,170.35,170.23,66.4474]
[1717096756162,2.1729,170.28,170.23,62.1735]
[1717096756778,4.3448,170.32,170.23,60.0]
[1717096757276,2.1727,170.29,170.24,2.1733]
[1717096758180,2.1729,170.28,170.23,62.1734]
[1717096758373,2.1729,170.28,170.23,2.1734]
[1717096758757,2.1729,170.28,170.24,2.1733]
[1717096758957,2.1729,170.28,170.23,2.1734]
[1717096760581,2.1729,170.28,170.24,2.1733]
[1717096760883,2.1728,170.29,170.24,2.1733]
[1717096761183,2.1729,170.28,170.24,2.1733]
[1717096761771,2.1729,170.28,170.23,2.1734]
[1717096761966,2.173,170.27,170.22,2.1736]
[1717096762164,15.2079,170.31,170.22,2.1736]
[1717096762365,6.0021,170.35,170.2,2.1738]
[1717096762366,2.1733,170.25,170.2,2.1738]
[1717096762567,7.46,170.21,170.2,2.1738]
[1717096763284,7.46,170.21,170.19,2.9829203]
[1717096764399,7.46,170.2,170.19,2.9829203]
[1717096764563,2.1733,170.25,170.2,2.1738]
[1717096764764,10.4338,170.28,170.19,0.8090203]
[1717096764765,2.1734,170.24,170.19,2.9830203]
[1717096764962,2.1734,170.24,170.2,2.1739]
[1717096765371,2.1735,170.23,170.19,2.9829203]
[1717096765672,2.1734,170.24,170.19,2.9829203]
[1717096766892,2.1734,170.24,170.2,2.1738]
[1717096767961,2.1735,170.23,170.19,2.9829203]
[1717096770594,2.1737,170.22,170.19,0.8090203]
[1717096773082,2.1739,170.2,170.19,0.8090203]
[1717096773284,15.2141,170.24,170.19,0.8090203]
[1717096773497,2.1738,170.21,170.19,0.8090203]
[1717096773671,10.7108,170.25,170.19,0.8090203]
[1717096773869,2.1735,170.23,170.19,2.9830203]
[1717096774070,7.46,170.2,170.19,2.9830203]
[1717096774589,2.1735,170.23,170.19,2.9830203]
[1717096774777,2.1734,170.24,170.2,2.1739]
[1717096775115,19.5574,170.27,170.19,2.9830203]
[1717096775116,2.1735,170.23,170.19,2.9830203]
[1717096776670,2.1735,170.23,170.19,0.8090203]
[1717096777384,2.1735,170.23,170.19,2.9829203]
[1717096777887,2.1734,170.24,170.19,2.9829203]
[1717096778073,2.1733,170.25,170.2,62.1738]
[1717096778389,7.46,170.22,170.2,62.1738]
[1717096779591,7.46,170.22,170.21,2.1737]
[1717096779891,2.1733,170.25,170.22,60.0]
[1717096780678,2.1734,170.24,170.2,68.3888]
[1717096780868,2.1733,170.25,170.21,2.1737]
[1717096781788,2.1734,170.24,170.2,68.3888]
[1717096781986,2.1734,170.24,170.19,0.8090203]
[1717096781987,2.1735,170.23,170.19,2.9829203]
[1717096783072,2.1734,170.24,170.2,2.1739]
[1717096783293,2.1735,170.23,170.19,2.9829203]
[1717096784290,4.3463,170.26,170.19,2.9829203]
[1717096784291,6.07526916,170.3,170.22,60.0]
[1717096784489,2.1731,170.27,170.23,2.1734]
[1717096785489,29.218869,170.34,170.24,60.0]
[1717096785674,2.1728,170.29,170.24,62.1733]
[1717096785874,2.1728,170.29,170.25,2.1732]
[1717096786279,2.1729,170.28,170.24,2.1733]
[1717096786593,2.173,170.27,170.23,2.1734]
[1717096787376,2.1728,170.29,170.24,62.1733]
[1717096787575,2.1728,170.29,170.25,45.0]
[1717096788192,2.1729,170.28,170.25,45.0]
[1717096792675,2.1728,170.29,170.25,47.1732]
[1717096793095,2.1729,170.28,170.25,45.0]
[1717096793303,2.1728,170.29,170.25,107.1732]
[1717096794302,2.1729,170.28,170.25,105.0]
[1717096795581,2.1728,170.29,170.25,105.0]
[1717096795986,2.1728,170.28,170.25,45.0]
[1717096796187,2.1728,170.28,170.24,47.1733]
[1717096799082,2.1728,170.29,170.25,62.1732]
[1717096799304,2.1728,170.29,170.26,45.0]
[1717096799496,2.1728,170.28,170.26,45.0]
[1717096800093,2.1727,170.29,170.26,45.0]
[1717096800598,2.1729,170.28,170.26,45.0]
[1717096800788,4.3451,170.31,170.26,45.0]
[1717096801105,2.1728,170.29,170.26,45.0]
[1717096802318,2.1726,170.3,170.26,47.1731]
[1717096802490,13.0339,170.33,170.27,62.1729]
[1717096802491,2.1725,170.31,170.27,62.1729]
[1717096802815,2.1725,170.31,170.28,45.0]
[1717096803182,2.1726,170.3,170.28,45.0]
[1717096803399,2.1727,170.29,170.28,45.0]
[1717096803605,2.1726,170.3,170.28,45.0]
[1717096804215,2.1726,170.3,170.25,60.0]
[1717096804216,6.5175,170.31,170.23,60.0]
[1717096804519,2.1729,170.28,170.23,62.1734]
[1717096804686,2.1728,170.29,170.23,60.0]
[1717096804886,2.1728,170.29,170.25,2.1732]
[1717096805304,2.1726,170.3,170.25,2.1732]
[1717096805505,4.3447,170.32,170.24,47.1733]
[1717096805900,2.1731,170.27,170.22,2.1735]
[1717096806382,2.1729,170.28,170.24,60.0]
[1717096806810,2.1728,170.29,170.24,62.1733]
[1717096806987,2.1726,170.3,170.25,2.1732]
[1717096807301,2.1727,170.3,170.26,62.1731]
[1717096807505,2.1727,170.3,170.27,45.0]
[1717096807687,2.1727,170.29,170.27,45.0]
[1717096808215,2.1726,170.3,170.27,45.0]
[1717096809495,2.1728,170.29,170.27,45.0]
[1717096809982,2.1728,170.28,170.27,45.0]
[1717096812631,10.862,170.32,170.27,45.0]
[1717096812632,4.3449,170.32,170.27,45.0]
[1717096812922,2.1726,170.3,170.25,62.1732]
[1717096813219,2.1727,170.29,170.25,62.1732]
[1717096813711,2.1727,170.29,170.25,2.1732]
[1717096815007,2.1727,170.29,170.25,62.1732]
[1717096815392,4.3449,170.32,170.25,60.0]
[1717096815910,4.345,170.31,170.24,2.1733]
[1717096816295,2.1729,170.28,170.24,2.1733]
[1717096816811,2.1728,170.29,170.26,60.0]
[1717096817013,2.1726,170.3,170.26,60.0]
[1717096817223,2.1726,170.31,170.27,2.1729]
[1717096817520,2.1726,170.31,170.26,62.1731]
[1717096817892,2.1724,170.32,170.28,60.0]
[1717096818102,2.1724,170.32,170.28,62.1728]
[1717096818299,2.172,170.35,170.3,62.1726]
[1717096818504,2.1721,170.34,170.3,62.1726]
[1717096819229,2.1721,170.34,170.3,60.0]
[1717096819398,2.1721,170.34,170.3,62.1725]
[1717096819604,2.172,170.35,170.3,62.1725]
[1717096819803,2.172,170.35,170.31,2.1724]
[1717096820605,2.172,170.35,170.3,62.1725]
[1717096821513,2.1721,170.34,170.3,2.1725]
[1717096821713,15.3326,170.39,170.28,2.1728]
[1717096821714,6.6462,170.39,170.28,2.1728]
[1717096821907,2.1725,170.31,170.27,60.0]
[1717096822305,2.1725,170.31,170.27,62.173]
[1717096822503,2.1724,170.32,170.28,2.1728]
[1717096822914,2.1723,170.33,170.28,2.1728]
[1717096823117,13.0323,170.35,170.27,62.1729]
[1717096823314,2.1725,170.31,170.27,62.1729]
[1717096824113,2.1724,170.32,170.27,62.1729]
[1717096826320,7.46,170.28,170.25,2.1732]
[1717096826540,2.1728,170.29,170.25,2.1732]
[1717096828911,2.1726,170.3,170.26,62.1731]
[1717096829110,2.1725,170.31,170.26,62.1731]
[1717096829438,2.1725,170.31,170.27,2.1729]
[1717096829609,2.1724,170.32,170.28,62.1728]
[1717096829804,2.1723,170.33,170.28,62.1728]
[1717096830024,2.1723,170.33,170.29,2.1727]
[1717096830227,2.1723,170.33,170.3,60.0]
[1717096830431,7.46,170.31,170.3,60.0]
[1717096831107,2.172,170.35,170.3,60.0]
[1717096831427,7.46,170.33,170.31,2.1724]
[1717096832305,2.1718,170.36,170.32,60.0]
[1717096832707,2.172,170.35,170.32,60.0]
[1717096834827,2.1719,170.36,170.32,60.0]
[1717096836425,2.172,170.35,170.32,60.0]
[1717096837604,2.1719,170.36,170.32,60.0]
[1717096838019,2.1719,170.36,170.32,62.1723]
[1717096838220,2.1717,170.37,170.32,66.0003]
[1717096839250,2.1717,170.37,170.34,60.0]
[1717096842729,2.1716,170.38,170.34,60.0]
[1717096843609,2.1717,170.37,170.34,60.0]
[1717096844963,6.06980986,170.43,170.36,60.0]
[1717096845150,15.1458,170.45,170.36,60.0]
[1717096845443,2.1713,170.4,170.36,62.1718]
[1717096845766,2.1713,170.4,170.36,68.4967]
[1717096846040,2.1713,170.4,170.37,6.0044]
[1717096846336,2.1713,170.4,170.38,60.0]
[1717096847673,2.1711,170.42,170.38,62.1715]
[1717096849634,2.1711,170.42,170.38,60.0]
[1717096851255,2.1711,170.42,170.38,68.5833]
[1717096855160,2.1711,170.42,170.4,60.0]
[1717096856458,2.1706,170.46,170.42,62.171]
[1717096856671,2.1707,170.45,170.42,60.0]
[1717096856847,7.46,170.44,170.42,60.0]
[1717096859358,7.46,170.44,170.42,62.171]
[1717096860471,2.1706,170.46,170.42,62.171]
[1717096860649,2.1707,170.45,170.42,60.0]
[1717096862163,2.1706,170.46,170.42,60.0]
[1717096862676,7.46,170.45,170.42,62.171]
[1717096863767,2.1705,170.47,170.44,60.0]
[1717096865765,2.1705,170.47,170.44,66.5011]
[1717096867069,2.1703,170.48,170.46,60.0]
[1717096868352,2.1702,170.49,170.46,60.0]
[1717096868678,2.1703,170.48,170.46,60.0]
[1717096868885,6.06842943,170.54,170.42,60.0]
[1717096869055,6.5104,170.5,170.42,60.0]
[1717096869385,2.171,170.43,170.39,8.5942]
[1717096869557,2.171,170.43,170.4,60.0]
[1717096869763,2.1709,170.44,170.4,62.1713]
[1717096870086,8.6808,170.5,170.44,60.0]
[1717096870289,6.06842943,170.54,170.44,62.1707]
[1717096870290,2.1702,170.49,170.44,62.1707]
[1717096870482,2.1702,170.49,170.42,17.6]
[1717096870483,13.0187,170.53,170.46,60.0]
[1717096870657,4.3396,170.52,170.46,60.0]
[1717096870856,2.1702,170.49,170.46,60.0]
[1717096871584,2.1701,170.5,170.46,68.7477]
[1717096872452,2.1701,170.5,170.46,66.5772]
[1717096873154,4.3391,170.54,170.48,60.0]
[1717096874060,2.1699,170.51,170.46,68.4654]
[1717096875662,2.1699,170.51,170.47,2.1704]
[1717096876065,2.17,170.5,170.46,2.1705]
[1717096876264,2.17,170.5,170.45,62.1706]
[1717096876871,2.17,170.5,170.46,2.1705]
[1717096878154,2.1702,170.49,170.44,2.1707]
[1717096878482,2.1705,170.47,170.42,8.6448]
[1717096878871,2.1703,170.48,170.43,60.0]
[1717096879066,10.8493,170.52,170.45,60.0]
[1717096879369,2.1702,170.49,170.45,62.1707]
[1717096880469,2.1702,170.49,170.45,60.0]
[1717096881182,2.1703,170.48,170.45,60.0]
[1717096882057,2.1705,170.47,170.43,2.1709]
[1717096883176,2.1704,170.48,170.44,62.1707]
[1717096883379,2.1704,170.47,170.43,2.1709]
[1717096883578,2.1707,170.46,170.41,2.1711]
[1717096883783,2.1708,170.44,170.4,62.1713]
[1717096884578,2.1707,170.45,170.41,2.1712]
[1717096884769,2.1707,170.45,170.42,60.0]
[1717096884975,2.1707,170.45,170.41,2.1712]
[1717096885362,2.1706,170.46,170.42,62.171]
[1717096886063,2.1706,170.46,170.44,60.0]
[1717096886265,2.1705,170.47,170.44,60.0]
[1717096886981,2.1704,170.47,170.44,60.0]
[1717096887165,8.6797,170.52,170.46,60.0]
[1717096887166,2.1704,170.48,170.46,60.0]
[1717096887709,2.1704,170.47,170.44,60.0]
[1717096888063,2.1704,170.47,170.43,2.1709]
[1717096888262,2.1705,170.46,170.42,62.171]
[1717096888897,8.6812,170.49,170.42,60.0]
[1717096889064,4.3412,170.46,170.4,60.0]
[1717096889262,4.3412,170.46,170.38,6.2415]
[1717096889263,7.46,170.41,170.38,60.0]
[1717096889479,7.46,170.41,170.33,664.1033]
[1717096889480,7.46,170.39,170.36,60.0]
[1717096889690,7.46,170.38,170.36,60.0]
[1717096890293,2.1715,170.39,170.35,2.1719]
[1717096890587,2.1713,170.4,170.36,60.0]
[1717096890787,2.1711,170.42,170.38,60.0]
[1717096891264,2.1712,170.41,170.38,60.0]
[1717096891978,6.5131,170.43,170.33,6.0867]
[1717096892170,7.46,170.46,170.33,2.1722]
[1717096892370,2.1717,170.38,170.33,2.1722]
[1717096892586,2.1717,170.38,170.34,2.1721]
[1717096892776,2.1717,170.38,170.34,62.1721]
[1717096893178,2.1717,170.38,170.33,2.1722]
[1717096893593,2.1717,170.37,170.33,2.1722]
[1717096894472,2.1716,170.38,170.34,2.1721]
[1717096894794,2.1716,170.38,170.34,62.1721]
[1717096895172,2.1716,170.38,170.36,60.0]
[1717096896894,2.1714,170.4,170.36,60.0]
[1717096897092,2.1715,170.39,170.34,60.0]
[1717096897278,2.1716,170.38,170.34,62.172]
[1717096897684,2.1717,170.37,170.34,60.0]
[1717096897986,4.3428,170.4,170.32,68.0453]
[1717096898184,15.1512,170.42,170.32,65.873]
[1717096898404,4.3434,170.37,170.31,5.873]
[1717096898576,7.46,170.32,170.31,5.873]
[1717096898777,4.3434,170.37,170.31,5.873]
[1717096899095,7.46,170.33,170.31,8.0455]
[1717096900487,7.46,170.33,170.32,5.873]
[1717096900687,7.46,170.33,170.3,2.1725]
[1717096901085,4.3434,170.38,170.32,60.0]
[1717096901288,2.1719,170.36,170.32,62.1723]
[1717096901484,2.1719,170.36,170.32,60.0]
[1717096901683,4.3434,170.38,170.32,60.0]
[1717096901684,2.172,170.35,170.32,60.0]
[1717096902390,13.7913,170.44,170.34,6.566]
[1717096902712,9.6314,170.4,170.36,60.0]
[1717096902899,7.46,170.4,170.36,62.1718]
[1717096903090,9.6313,170.4,170.36,62.1718]
[1717096904608,9.6313,170.4,170.38,60.0]
[1717096905282,14.7102,170.48,170.41,60.0]
[1717096905501,2.1709,170.44,170.41,60.0]
[1717096905703,2.1709,170.43,170.39,60.0]
[1717096905914,8.6826,170.46,170.37,60.0]
[1717096906203,2.1712,170.41,170.37,60.0]
[1717096906399,2.1711,170.42,170.37,62.1717]
[1717096907201,2.1711,170.42,170.39,60.0]
[1717096907802,2.1712,170.41,170.39,60.0]
[1717096908106,2.1712,170.41,170.37,60.0]
[1717096908499,2.1712,170.41,170.37,62.1717]
[1717096909409,2.1712,170.41,170.37,60.0]
[1717096909712,2.1711,170.42,170.37,62.1716]
[1717096909891,2.1711,170.42,170.38,2.1716]
[1717096910091,2.1711,170.42,170.37,62.1716]
[1717096910804,2.1711,170.42,170.38,2.1715]
[1717096911811,12.5398,170.48,170.42,60.0]
[1717096911993,2.1707,170.45,170.42,60.0]
[1717096912313,2.1708,170.44,170.4,60.0]
[1717096912509,4.3412,170.46,170.4,60.0]
[1717096912996,2.171,170.43,170.38,62.1715]
[1717096913594,2.1709,170.44,170.4,60.0]
[1717096913798,2.1709,170.44,170.42,60.0]
[1717096914594,7.46,170.44,170.42,60.0]
[1717096915393,7.46,170.44,170.36,6.5155]
[1717096915394,21.2139,170.56,170.44,60.0]
[1717096915603,2.1702,170.49,170.46,60.0]
[1717096916000,7.46,170.47,170.44,62.1707]
[1717096916391,7.46,170.47,170.46,60.0]
[1717096917421,7.46,170.47,170.44,62.1707]
[1717096917798,12.04292445,170.56,170.48,60.0]
[1717096918114,7.46,170.52,170.49,2.1701]
[1717096918323,7.46,170.52,170.48,60.0]
[1717096918324,2.1697,170.53,170.48,60.0]
[1717096919415,2.1697,170.53,170.48,62.1703]
[1717096919622,2.1696,170.54,170.5,60.0]
[1717096920521,2.1697,170.53,170.48,62.1703]
[1717096922125,2.1696,170.54,170.48,62.1703]
[1717096922902,2.1697,170.53,170.48,62.1703]
[1717096924001,2.1697,170.53,170.48,60.0]
[1717096924621,2.1697,170.53,170.48,62.1703]
[1717096925001,2.1697,170.53,170.5,60.0]
[1717096927721,2.1697,170.53,170.48,60.0]
[1717096928519,2.1698,170.52,170.48,60.0]
[1717096930413,2.1697,170.53,170.48,62.1703]
[1717096931124,2.1698,170.52,170.48,60.0]
[1717096931508,2.1697,170.53,170.48,62.1703]
[1717096931714,2.1697,170.53,170.5,60.0]
[1717096932024,2.1698,170.52,170.48,60.0]
[1717096932621,2.1697,170.53,170.48,62.1703]
[1717096932825,2.1698,170.52,170.48,62.1703]
[1717096933016,2.1697,170.53,170.48,62.1702]
[1717096934119,2.1698,170.52,170.48,60.0]
[1717096935610,2.1697,170.53,170.48,62.1703]
[1717096937838,2.1697,170.53,170.51,60.0]
[1717096938041,2.1697,170.53,170.49,60.0]
[1717096938738,2.1697,170.53,170.51,60.0]
[1717096939114,2.1697,170.53,170.49,62.1702]
[1717096939337,2.1697,170.53,170.49,60.0]
[1717096939537,2.1698,170.52,170.47,62.1704]
[1717096939725,2.1698,170.52,170.47,60.0]
[1717096940640,2.1698,170.52,170.49,60.0]
[1717096940826,2.1697,170.53,170.49,60.0]
[1717096945728,2.1696,170.54,170.51,60.0]
[1717096945924,7.46,170.52,170.49,60.0]
[1717096946120,2.1698,170.52,170.49,60.0]
[1717096946739,2.1697,170.53,170.49,60.0]
[1717096949031,2.1697,170.53,170.51,60.0]
[1717096949229,2.1695,170.54,170.51,60.0]
[1717096949431,2.1695,170.55,170.51,60.0]
[1717096949831,2.1695,170.54,170.51,60.0]
[1717096950039,2.1693,170.56,170.53,60.0]
[1717096952439,9.6295,170.54,170.53,60.0]
[1717096952852,7.46,170.54,170.53,60.0]
[1717096953154,9.6295,170.54,170.53,60.0]
[1717096953460,7.46,170.54,170.53,60.0]
[1717096954653,2.1695,170.55,170.53,60.0]
[1717096955047,10.38610229,170.62,170.58,60.0]
[1717096955350,2.1686,170.62,170.58,60.0]
[1717096955747,2.1687,170.61,170.58,60.0]
[1717096956054,2.1688,170.6,170.58,60.0]
[1717096956248,2.1686,170.62,170.58,60.0]
[1717096956450,4.3368,170.63,170.58,60.0]
[1717096957235,2.1688,170.6,170.58,60.0]
[1717096958256,2.1688,170.6,170.56,60.0]
[1717096958462,2.1691,170.58,170.52,60.0]
[1717096958658,8.6753,170.6,170.52,60.0]
[1717096959040,2.1693,170.56,170.52,60.0]
[1717096959556,2.1692,170.57,170.52,62.1698]
[1717096960571,2.1692,170.57,170.55,60.0]
[1717096961259,2.1691,170.58,170.55,60.0]
[1717096961454,4.3375,170.61,170.55,60.0]
[1717096961669,7.46,170.64,170.57,60.0]
[1717096961850,7.46,170.58,170.57,60.0]
[1717096962267,9.629,170.58,170.52,60.0]
[1717096962570,2.169,170.58,170.54,60.0]
[1717096962767,2.169,170.59,170.56,60.0]
[1717096962972,4.3375,170.61,170.56,60.0]
[1717096962973,2.169,170.58,170.56,60.0]
[1717096963376,2.169,170.58,170.54,60.0]
[1717096964176,2.1689,170.6,170.57,60.0]
[1717096964584,15.1795,170.63,170.57,60.0]
[1717096964780,2.1689,170.59,170.55,60.0]
[1717096964956,2.1691,170.58,170.55,60.0]
[1717096966077,2.1692,170.57,170.53,60.0]
[1717096966262,2.169,170.58,170.55,60.0]
[1717096966468,2.1689,170.59,170.55,60.0]
[1717096967486,6.05226991,170.65,170.52,60.0]
[1717096967487,6.2034,170.61,170.52,60.0]
[1717096967653,2.1696,170.54,170.5,60.0]
[1717096967853,13.0156,170.57,170.5,62.17]
[1717096967854,2.1695,170.55,170.5,62.17]
[1717096968057,2.1695,170.55,170.51,2.1699]
[1717096968256,2.1694,170.55,170.51,2.1699]
[1717096968474,2.1696,170.54,170.5,62.17]
[1717096968676,2.1697,170.53,170.5,60.0]
[1717096968877,2.1696,170.54,170.5,60.0]
[1717096970280,10.8467,170.56,170.48,440.9]
[1717096970475,2.1698,170.53,170.48,443.0703]
[1717096970662,10.8467,170.56,170.48,443.0703]
[1717096970663,2.1698,170.52,170.48,443.0703]
[1717096971155,2.1697,170.53,170.48,443.0703]
[1717096972465,13.0168,170.55,170.48,380.9]
[1717096972673,4.3392,170.54,170.48,380.9]
[1717096972888,2.17,170.51,170.48,380.9]
[1717096973483,7.46,170.49,170.48,380.9]
[1717096979565,9.6302,170.49,170.48,380.9]
[1717096980394,7.46,170.49,170.48,380.9]
[1717096980694,9.6302,170.49,170.48,380.9]
[1717096981075,24.764,170.49,170.48,380.9]
[1717096981279,51.7559,170.49,170.48,380.9]
[1717096981976,2.1702,170.49,170.48,380.9]
[1717096982697,6.5106,170.49,170.48,380.9]
[1717096983194,22.4522,170.49,170.4,60.0]
[1717096983375,2.171,170.43,170.4,60.0]
[1717096983697,2.171,170.43,170.38,62.1715]
[1717096984195,2.171,170.43,170.39,2.1714]
[1717096984400,2.171,170.43,170.38,62.1715]
[1717096985098,2.1711,170.42,170.38,62.1715]
[1717096985593,7.46,170.39,170.38,62.1715]
[1717096986386,7.46,170.39,170.35,60.0]
[1717096986586,2.1714,170.4,170.35,60.0]
[1717096986797,2.1714,170.4,170.36,2.1718]
[1717096986993,2.1712,170.41,170.38,60.0]
[1717096987698,2.1713,170.4,170.38,60.0]
[1717096988813,2.1709,170.44,170.4,62.1712]
[1717096988982,2.1709,170.43,170.4,60.0]
[1717096989491,2.1711,170.42,170.4,60.0]
[1717096989882,4.3412,170.46,170.4,60.0]
[1717096989883,2.171,170.43,170.4,60.0]
[1717096991907,2.1709,170.44,170.4,60.0]
[1717096992907,2.1709,170.43,170.42,60.0]
[1717096994023,2.1711,170.42,170.39,60.0]
[1717096995386,2.171,170.43,170.39,62.1714]
[1717096995593,2.171,170.43,170.39,60.0]
[1717096996312,2.171,170.43,170.39,62.1714]
[1717096996705,2.1709,170.44,170.42,60.0]
[1717096996908,2.1707,170.45,170.42,60.0]
[1717096997519,2.1709,170.43,170.42,60.0]
[1717096997899,2.1709,170.43,170.4,60.0]
[1717096998216,2.1711,170.42,170.38,62.1715]
[1717096998412,2.1711,170.42,170.38,60.0]
[1717096998716,2.171,170.43,170.41,60.0]
[1717096998891,2.171,170.43,170.39,62.1714]
[1717096999318,2.1709,170.44,170.41,60.0]
[1717097001516,7.46,170.43,170.41,60.0]
[1717097002412,2.1709,170.43,170.41,60.0]
[1717097002616,2.1709,170.43,170.39,62.1714]
[1717097006530,2.1709,170.44,170.41,60.0]
[1717097009135,2.1707,170.45,170.43,60.0]
[1717097009340,2.1708,170.44,170.43,60.0]
[1717097009830,2.1707,170.45,170.43,60.0]
[1717097011610,2.1706,170.46,170.43,60.0]
[1717097011916,2.1707,170.45,170.43,60.0]
[1717097012226,2.1707,170.45,170.41,62.1712]
[1717097012621,2.171,170.43,170.41,60.0]
[1717097012815,2.171,170.43,170.39,62.1713]
[1717097013011,10.95408464,170.53,170.37,60.0]
[1717097013224,16.5206,170.48,170.37,62.1716]
[1717097013423,4.3418,170.44,170.38,2.1715]
[1717097013620,2.171,170.43,170.38,62.1715]
[1717097014439,2.1711,170.42,170.38,62.1715]